bitfinex/quotes_SOLUSD_20250721
["timestamp","ask_amount","ask_price","bid_price","bid_amount"]
[1753073314944,9.91737166,186.62,186.58,0.66]
[1753073315460,10.60737166,186.62,186.58,0.66]
[1753073315664,15.96591488,186.62,186.58,0.66]
[1753073316044,15.27591488,186.62,186.56,96.12318766]
[1753073316251,3.95307166,186.61,186.56,125.12]
[1753073316457,0.69,186.6,186.56,125.78]
[1753073316756,0.69,186.6,186.56,88.16]
[1753073317240,3.95307166,186.6,186.56,88.16]
[1753073317851,9.3121459,186.6,186.56,88.16]
[1753073318162,0.69,186.59,186.56,87.5]
[1753073318344,8.6221459,186.6,186.56,88.16]
[1753073318538,8.6221459,186.6,186.58,0.03]
[1753073318768,9.3121459,186.6,186.58,0.03]
[1753073319851,3.95307166,186.59,186.58,87.53]
[1753073320768,0.69,186.59,186.58,87.53]
[1753073320952,3.95307166,186.59,186.58,87.53]
[1753073322564,8.6221459,186.6,186.58,87.53]
[1753073322868,6.6543,186.62,186.58,88.19]
[1753073323068,9.91737166,186.62,186.58,88.19]
[1753073323246,9.91737166,186.62,186.58,87.53]
[1753073323745,3.26307166,186.6,186.58,87.53]
[1753073324163,3.94307166,186.6,186.58,87.53]
[1753073324744,3.26307166,186.6,186.58,87.53]
[1753073324963,3.94307166,186.6,186.58,87.53]
[1753073325172,0.68,186.6,186.58,87.53]
[1753073325461,3.26307166,186.6,186.58,87.53]
[1753073325672,3.26307166,186.61,186.59,0.7]
[1753073325857,3.26307166,186.61,186.58,87.53]
[1753073326373,3.26307166,186.61,186.58,88.23]
[1753073326551,8.62186999,186.61,186.58,88.23]
[1753073327354,3.26307166,186.6,186.58,88.23]
[1753073327549,3.26307166,186.6,186.58,87.53]
[1753073327750,8.62214039,186.6,186.58,87.53]
[1753073328471,5.35906873,186.6,186.58,87.53]
[1753073328849,0.68,186.59,186.58,0.03]
[1753073329170,8.62214039,186.6,186.58,0.03]
[1753073329351,9.30214039,186.6,186.58,0.03]
[1753073329965,6.03906873,186.6,186.58,0.03]
[1753073330171,9.30218271,186.6,186.58,0.03]
[1753073330370,6.03911105,186.6,186.58,0.03]
[1753073330558,9.30218271,186.6,186.58,0.03]
[1753073330751,8.62218271,186.6,186.58,0.03]
[1753073331956,5.35911105,186.6,186.58,0.03]
[1753073332149,8.62218271,186.6,186.58,0.03]
[1753073332354,3.26307166,186.59,186.58,0.03]
[1753073332578,9.30218271,186.6,186.58,0.03]
[1753073333256,6.03911105,186.6,186.58,0.03]
[1753073333580,8.62218271,186.6,186.58,0.03]
[1753073334552,5.35911105,186.6,186.58,0.03]
[1753073336086,9.30218271,186.6,186.58,0.03]
[1753073337573,6.03911105,186.6,186.58,0.03]
[1753073337762,9.30218271,186.6,186.58,0.03]
[1753073338171,2.322,186.66,186.59,3.96307166]
[1753073338362,2.322,186.66,186.61,3.26307166]
[1753073338565,3.26307166,186.64,186.59,88.2]
[1753073338764,3.26307166,186.64,186.59,87.5]
[1753073339083,3.94307166,186.63,186.59,87.5]
[1753073339390,0.68,186.62,186.59,87.5]
[1753073340184,0.68,186.61,186.59,87.5]
[1753073340786,8.62164425,186.62,186.59,87.5]
[1753073341093,8.62105588,186.64,186.6,0.7]
[1753073341300,0.06,186.65,186.61,3.96307166]
[1753073341470,0.06,186.65,186.62,0.7]
[1753073342174,0.06,186.65,186.63,0.7]
[1753073342379,0.06,186.65,186.63,91.46307166]
[1753073342881,0.06,186.65,186.64,0.7]
[1753073343082,0.06,186.65,186.64,3.96307166]
[1753073343278,0.06,186.65,186.63,87.5]
[1753073343478,0.06,186.65,186.64,3.96307166]
[1753073343993,0.06,186.69,186.65,0.096515]
[1753073344299,0.06,186.69,186.67,3.26307166]
[1753073344500,0.06,186.69,186.68,3.96307166]
[1753073346287,0.06,186.69,186.65,0.096515]
[1753073346288,32.0256,186.68,186.65,0.096515]
[1753073346484,3.26307166,186.66,186.65,0.096515]
[1753073346885,3.94307166,186.66,186.65,0.096515]
[1753073347189,0.68,186.66,186.65,0.096515]
[1753073347497,9.30040585,186.66,186.59,0.7]
[1753073347697,3.26307166,186.65,186.59,0.7]
[1753073348805,5.35790827,186.64,186.59,0.7]
[1753073348973,5.35790827,186.64,186.6,0.7]
[1753073350104,5.35790827,186.64,186.61,0.7]
[1753073351487,9.30075162,186.65,186.61,0.7]
[1753073352409,3.26307166,186.63,186.61,0.7]
[1753073352613,3.94307166,186.64,186.59,0.7]
[1753073352998,3.26307166,186.64,186.6,0.7]
[1753073353300,3.26307166,186.64,186.61,0.69]
[1753073353501,5.35731943,186.67,186.61,3.95307166]
[1753073353689,8.62039109,186.67,186.62,3.95307166]
[1753073353892,8.62039109,186.67,186.63,0.69]
[1753073354207,3.94307166,186.66,186.63,87.5]
[1753073354413,3.26307166,186.66,186.63,88.19]
[1753073354712,3.26307166,186.66,186.63,87.5]
[1753073354932,3.26307166,186.66,186.63,88.19]
[1753073355481,8.62039109,186.67,186.63,88.19]
[1753073355681,8.62039109,186.67,186.64,0.69]
[1753073356781,9.30039109,186.67,186.63,87.5]
[1753073357016,9.30039109,186.67,186.63,88.19]
[1753073357486,3.26307166,186.65,186.63,87.5]
[1753073357681,3.94307166,186.65,186.63,87.5]
[1753073358381,9.30077032,186.65,186.63,87.5]
[1753073360012,0.68,186.64,186.59,41.55307166]
[1753073360215,0.68,186.64,186.59,129.05307166]
[1753073360517,0.68,186.63,186.59,125.79]
[1753073360691,3.94307166,186.63,186.59,125.79]
[1753073360884,3.94307166,186.63,186.59,88.19]
[1753073361423,3.94307166,186.62,186.59,87.5]
[1753073361597,0.68,186.61,186.59,87.5]
[1753073362111,9.30211083,186.61,186.59,87.5]
[1753073362289,0.68,186.6,186.59,87.5]
[1753073362478,8.62211083,186.61,186.59,0.03]
[1753073365910,8.62211083,186.61,186.59,87.53]
[1753073366284,9.30211083,186.61,186.59,87.53]
[1753073366692,0.68,186.6,186.59,87.53]
[1753073367112,8.62211083,186.61,186.59,87.53]
[1753073367493,9.30211083,186.61,186.59,87.53]
[1753073367815,13.39405304,186.65,186.59,87.53]
[1753073367816,3.26307166,186.64,186.6,0.69]
[1753073368110,9.30069287,186.65,186.61,0.69]
[1753073371108,5.35803993,186.64,186.61,0.69]
[1753073371310,5.35803993,186.64,186.62,0.69]
[1753073371640,0.06,186.67,186.63,3.95307166]
[1753073371818,0.06,186.67,186.63,91.45307166]
[1753073371990,0.06,186.67,186.64,0.69]
[1753073372193,0.06,186.67,186.65,0.69]
[1753073373599,3.94307166,186.66,186.64,87.5]
[1753073373803,3.94307166,186.65,186.64,87.5]
[1753073374610,26.0,186.64,186.6,87.5]
[1753073374819,3.94307166,186.63,186.6,87.5]
[1753073374995,26.0,186.64,186.6,87.5]
[1753073374996,3.26307166,186.62,186.6,87.5]
[1753073375195,3.94307166,186.62,186.6,87.5]
[1753073375400,6.03733419,186.66,186.61,0.69]
[1753073375599,3.94307166,186.65,186.61,0.69]
[1753073375802,3.26307166,186.64,186.61,0.69]
[1753073376321,3.26307166,186.65,186.62,0.69]
[1753073376722,43.69711118,186.67,186.62,0.69]
[1753073376723,3.26307166,186.66,186.62,0.69]
[1753073376921,3.94307166,186.66,186.62,0.69]
[1753073377632,9.30043994,186.66,186.62,0.69]
[1753073378125,3.26307166,186.64,186.6,87.5]
[1753073378325,3.26307166,186.62,186.59,0.03]
[1753073378718,3.94307166,186.62,186.59,0.03]
[1753073378924,0.68,186.61,186.59,0.03]
[1753073379829,8.62158587,186.62,186.59,0.03]
[1753073380129,9.30158587,186.62,186.59,0.03]
[1753073380532,6.03851421,186.62,186.59,0.03]
[1753073380731,3.26307166,186.61,186.59,0.03]
[1753073381036,3.26307166,186.6,186.59,0.03]
[1753073381210,3.94307166,186.6,186.59,0.03]
[1753073381411,0.68,186.6,186.59,0.03]
[1753073383013,6.0390568,186.6,186.59,0.03]
[1753073383209,1.5157,186.63,186.59,0.03]
[1753073383416,5.35848247,186.62,186.59,0.03]
[1753073383617,6.01848247,186.62,186.59,0.03]
[1753073384514,3.26307166,186.6,186.59,0.03]
[1753073384728,6.3617,186.6,186.59,0.03]
[1753073384919,10.28477166,186.6,186.59,0.03]
[1753073385118,7.0217,186.6,186.59,0.03]
[1753073385441,0.66,186.6,186.59,0.03]
[1753073385614,3.92307166,186.6,186.59,0.03]
[1753073385815,29.92307166,186.6,186.59,0.03]
[1753073386525,35.28212846,186.6,186.59,0.03]
[1753073386922,39.55666446,186.6,186.59,0.03]
[1753073387123,62.70304843,186.6,186.58,0.03]
[1753073387323,22.25905563,186.59,186.55,0.03]
[1753073387522,22.25905563,186.59,186.54,0.03]
[1753073387523,49.14638397,186.55,186.54,1e-08]
[1753073387721,52.40945563,186.55,186.54,1e-08]
[1753073387925,36.28477166,186.55,186.54,1e-08]
[1753073388631,41.64526482,186.55,186.54,1e-08]
[1753073389738,14.98526482,186.55,186.54,1e-08]
[1753073390045,5.36049316,186.55,186.54,1e-08]
[1753073391136,5.36027345,186.56,186.54,0.66000001]
[1753073391329,8.62334511,186.56,186.54,0.66000001]
[1753073392444,8.62299516,186.57,186.54,0.66000001]
[1753073392744,8.62299516,186.57,186.55,0.66]
[1753073392943,5.3599235,186.57,186.55,0.66]
[1753073393143,5.3599235,186.57,186.54,1e-08]
[1753073393340,5.3599235,186.57,186.54,0.66000001]
[1753073393919,5.3599235,186.57,186.55,0.66]
[1753073394323,5.3599235,186.57,186.54,1e-08]
[1753073394639,5.3599235,186.57,186.54,0.66000001]
[1753073395438,5.3599235,186.57,186.54,88.16000001]
[1753073395838,5.3599235,186.57,186.54,1e-08]
[1753073396139,6.0199235,186.57,186.54,1e-08]
[1753073396457,5.3599235,186.57,186.54,0.66000001]
[1753073397052,8.62299516,186.57,186.54,0.66000001]
[1753073397553,9.28299516,186.57,186.54,1e-08]
[1753073398341,8.62299516,186.57,186.54,1e-08]
[1753073398650,3.92307166,186.56,186.54,1e-08]
[1753073399441,3.26307166,186.56,186.54,1e-08]
[1753073400145,9.28347894,186.56,186.54,1e-08]
[1753073400466,3.92307166,186.55,186.54,1e-08]
[1753073401530,0.66,186.55,186.54,1e-08]
[1753073401931,3.92307166,186.55,186.54,1e-08]
[1753073402231,6.02049316,186.55,186.54,1e-08]
[1753073402428,9.28356482,186.55,186.54,1e-08]
[1753073405428,6.02049316,186.55,186.54,1e-08]
[1753073405634,8.62356482,186.55,186.54,1e-08]
[1753073406131,37.9,186.58,186.54,0.66000001]
[1753073406334,37.19877166,186.59,186.54,0.66000001]
[1753073406543,37.19877166,186.59,186.54,88.16000001]
[1753073406749,11.19877166,186.59,186.55,0.66]
[1753073407163,11.85877166,186.59,186.55,0.66]
[1753073407462,6.91069781,186.59,186.56,0.66]
[1753073407666,5.35863957,186.62,186.58,3.26307166]
[1753073407867,5.35863957,186.62,186.59,0.66]
[1753073409258,5.35863957,186.62,186.58,87.5]
[1753073409458,6.01863957,186.62,186.58,88.16]
[1753073409854,29.26307166,186.59,186.54,87.50000001]
[1753073410061,3.26307166,186.55,186.54,1e-08]
[1753073410256,41.12307166,186.55,186.54,1e-08]
[1753073410458,41.78307166,186.55,186.54,1e-08]
[1753073411040,47.14356482,186.55,186.54,1e-08]
[1753073415250,46.48356482,186.55,186.54,1e-08]
[1753073415959,43.22049316,186.55,186.54,1e-08]
[1753073416150,46.48356482,186.55,186.54,1e-08]
[1753073417150,47.16356482,186.55,186.54,1e-08]
[1753073417749,26.0,186.52,186.5,0.03]
[1753073417957,26.0,186.49,186.48,1e-08]
[1753073418156,37.82,186.49,186.48,1e-08]
[1753073418347,4.91397166,186.51,186.48,0.71000001]
[1753073418556,41.08307166,186.51,186.49,0.71]
[1753073418866,37.82,186.51,186.49,0.71]
[1753073419371,37.82,186.51,186.48,1e-08]
[1753073419372,43.18171467,186.51,186.48,1e-08]
[1753073419569,43.18171467,186.51,186.49,0.71]
[1753073420562,43.18171467,186.51,186.48,1e-08]
[1753073420563,43.18168667,186.51,186.48,1e-08]
[1753073420751,37.82,186.51,186.49,0.71]
[1753073420954,37.82,186.51,186.5,0.71]
[1753073421353,46.4442001,186.53,186.5,0.71]
[1753073422562,39.03976021,186.55,186.51,0.71]
[1753073422757,41.08307166,186.53,186.48,0.71000001]
[1753073423267,41.08307166,186.53,186.49,0.71]
[1753073423451,41.08307166,186.53,186.5,0.71]
[1753073423654,37.82,186.53,186.48,3.26307167]
[1753073423970,37.82,186.53,186.51,0.71]
[1753073424476,7.01166021,186.55,186.52,0.71]
[1753073424661,5.36076021,186.55,186.52,88.21]
[1753073425657,3.26307166,186.55,186.52,88.21]
[1753073425851,46.46334762,186.56,186.53,0.71]
[1753073426051,46.46334762,186.56,186.53,88.21]
[1753073426681,8.62359125,186.55,186.53,87.5]
[1753073427672,9.30359125,186.55,186.53,87.5]
[1753073427872,3.26307166,186.54,186.53,87.5]
[1753073428069,8.62359125,186.55,186.53,87.5]
[1753073428455,5.36051959,186.55,186.53,87.5]
[1753073428755,5.42051959,186.55,186.53,87.5]
[1753073429887,8.68359125,186.55,186.53,87.5]
[1753073430066,5.42051959,186.55,186.53,87.5]
[1753073430656,9.36359125,186.55,186.53,87.5]
[1753073430971,37.82,186.54,186.51,87.5]
[1753073431178,37.82,186.54,186.51,88.21]
[1753073431975,43.1809802,186.54,186.51,88.21]
[1753073433162,46.44405186,186.54,186.51,88.21]
[1753073433469,46.44405186,186.54,186.51,87.5]
[1753073433975,47.12405186,186.54,186.51,87.5]
[1753073434175,46.44405186,186.54,186.51,87.5]
[1753073434379,5.36135535,186.52,186.51,87.5]
[1753073434679,8.62442701,186.52,186.49,87.5]
[1753073434868,47.10442701,186.52,186.49,87.5]
[1753073435071,43.84135535,186.52,186.49,87.5]
[1753073435275,43.16135535,186.52,186.49,87.5]
[1753073435577,43.16135535,186.52,186.49,88.21]
[1753073436670,46.42442701,186.52,186.49,88.21]
[1753073436872,43.16135535,186.52,186.49,88.21]
[1753073440781,43.16135535,186.52,186.49,87.5]
[1753073440980,43.16135535,186.52,186.5,0.71]
[1753073441176,43.16135535,186.52,186.51,0.71]
[1753073442089,43.16135535,186.52,186.49,88.21]
[1753073442687,5.36109176,186.53,186.49,87.5]
[1753073442881,0.06,186.55,186.51,3.26307166]
[1753073443388,0.06,186.55,186.52,0.67]
[1753073444266,0.06,186.55,186.53,3.26307166]
[1753073444466,0.06,186.55,186.52,125.91]
[1753073444467,0.06,186.55,186.54,0.67]
[1753073445188,0.06,186.55,186.54,3.93307166]
[1753073445774,0.06,186.55,186.54,0.67]
[1753073446465,0.06,186.55,186.52,128.50307166]
[1753073446666,0.06,186.55,186.53,0.67]
[1753073447874,0.06,186.55,186.52,87.5]
[1753073448074,0.06,186.55,186.52,88.17]
[1753073449175,0.06,186.55,186.53,0.67]
[1753073450473,0.06,186.55,186.52,87.5]
[1753073450691,3.96307166,186.54,186.5,0.67]
[1753073450893,5.36106792,186.53,186.5,0.67]
[1753073451085,5.36084341,186.54,186.51,0.67]
[1753073452800,9.32391507,186.54,186.49,0.67]
[1753073452973,9.32391507,186.54,186.48,128.46307167]
[1753073453174,9.32391507,186.54,186.5,0.67]
[1753073454023,22.02586639,186.54,186.48,1e-08]
[1753073454183,3.26307166,186.52,186.48,0.67000001]
[1753073454387,3.96307166,186.52,186.48,0.67000001]
[1753073454580,0.7,186.52,186.48,0.67000001]
[1753073454780,5.36135535,186.52,186.49,0.67]
[1753073455899,5.36106792,186.53,186.5,0.67]
[1753073456101,5.36106792,186.53,186.42,0.03]
[1753073456102,6.2145,186.48,186.42,0.03]
[1753073456402,29.26307166,186.45,186.42,0.03]
[1753073456790,29.96307166,186.45,186.42,0.03]
[1753073457406,29.96307166,186.45,186.44,1e-08]
[1753073457596,29.96307166,186.45,186.42,0.03]
[1753073457783,8.62701523,186.43,186.42,0.03]
[1753073457987,43.30394357,186.43,186.42,0.03]
[1753073458186,47.26701523,186.43,186.42,0.03]
[1753073459290,9.32701523,186.43,186.42,0.03]
[1753073459489,47.30701523,186.43,186.42,0.03]
[1753073460004,47.30701523,186.43,186.42,1e-08]
[1753073460308,47.30701523,186.43,186.4,0.2]
[1753073460309,26.0,186.41,186.4,1e-08]
[1753073460511,32.52614332,186.41,186.4,1e-08]
[1753073460818,29.96307166,186.41,186.4,1e-08]
[1753073461999,1.5228,186.46,186.4,0.67000001]
[1753073462197,3.26307166,186.43,186.4,0.67000001]
[1753073462418,3.26307166,186.43,186.41,0.67]
[1753073462916,3.26307166,186.42,186.41,0.67]
[1753073465302,3.26307166,186.43,186.41,0.67]
[1753073465516,3.26307166,186.44,186.41,0.67]
[1753073465714,8.62645546,186.45,186.41,0.67]
[1753073465919,8.62645546,186.45,186.4,1e-08]
[1753073466221,3.26307166,186.43,186.4,1e-08]
[1753073466398,3.26307166,186.41,186.4,1e-08]
[1753073467106,9.32759073,186.41,186.4,1e-08]
[1753073470320,8.62759073,186.41,186.4,1e-08]
[1753073470523,5.36451907,186.41,186.4,1e-08]
[1753073470716,3.26307166,186.41,186.4,0.67000001]
[1753073470894,41.18307166,186.42,186.4,0.67000001]
[1753073471105,3.26307166,186.42,186.4,0.67000001]
[1753073471500,8.627373,186.42,186.4,1e-08]
[1753073472323,8.627373,186.42,186.4,87.50000001]
[1753073472813,3.26307166,186.41,186.4,87.50000001]
[1753073473325,3.96307166,186.41,186.4,87.50000001]
[1753073473502,9.32759073,186.41,186.4,87.50000001]
[1753073473910,8.62759073,186.41,186.4,87.50000001]
[1753073476327,9.30759073,186.41,186.4,87.50000001]
[1753073476631,47.16759073,186.41,186.4,87.50000001]
[1753073478224,47.16759073,186.41,186.4,1e-08]
[1753073479828,46.48759073,186.41,186.4,1e-08]
[1753073481920,46.48759073,186.41,186.4,0.67000001]
[1753073482111,46.48759073,186.41,186.4,1e-08]
[1753073483714,46.48759073,186.41,186.4,0.67000001]
[1753073484818,46.42759073,186.41,186.4,0.67000001]
[1753073485426,37.8,186.41,186.4,0.67000001]
[1753073485931,41.06307166,186.43,186.4,0.67000001]
[1753073486226,41.06307166,186.43,186.41,0.67]
[1753073486599,41.06307166,186.43,186.42,0.67]
[1753073486798,37.8,186.43,186.42,0.67]
[1753073487001,43.16400212,186.43,186.42,0.67]
[1753073487430,37.8,186.43,186.42,0.67]
[1753073487602,8.62674212,186.44,186.42,0.67]
[1753073487803,46.40674212,186.44,186.42,0.67]
[1753073489122,37.78,186.44,186.4,87.50000001]
[1753073489333,37.78,186.44,186.43,0.67]
[1753073490913,0.06,186.45,186.43,0.67]
[1753073490914,0.06,186.45,186.43,88.17]
[1753073491416,0.06,186.45,186.44,0.67]
[1753073496033,0.06,186.45,186.44,88.17]
[1753073502835,0.06,186.45,186.44,87.5]
[1753073503015,4.00307166,186.45,186.44,87.5]
[1753073503218,0.74,186.45,186.44,87.5]
[1753073503944,0.06,186.45,186.44,87.5]
[1753073506941,0.06,186.49,186.44,171.93775563]
[1753073507154,0.06,186.49,186.47,26.0]
[1753073507324,5.42223946,186.49,186.45,3.95307166]
[1753073507641,0.06,186.49,186.46,0.69]
[1753073507848,0.06,186.49,186.45,3.26307166]
[1753073508033,0.06,186.49,186.47,0.69]
[1753073508937,5.4222273,186.49,186.45,0.69]
[1753073509137,5.4222273,186.49,186.46,0.69]
[1753073509824,5.4222273,186.49,186.47,0.69]
[1753073510546,0.06,186.49,186.47,0.69]
[1753073512142,0.06,186.49,186.48,0.69]
[1753073512344,0.06,186.49,186.48,88.19]
[1753073513626,0.06,186.49,186.48,117.45307166]
[1753073513826,0.06,186.49,186.48,171.97775563]
[1753073514132,0.06,186.49,186.48,177.34026099]
[1753073515735,0.06,186.49,186.48,174.07718933]
[1753073515933,0.06,186.49,186.48,177.34026099]
[1753073516258,0.06,186.49,186.48,168.71468397]
[1753073517029,0.06,186.49,186.48,171.97775563]
[1753073517226,0.06,186.49,186.48,172.03775563]
[1753073517551,0.06,186.49,186.48,177.40026099]
[1753073519155,0.06,186.49,186.48,172.03775563]
[1753073519349,0.06,186.49,186.48,155.25307166]
[1753073519944,0.06,186.49,186.48,151.99]
[1753073520137,0.06,186.49,186.48,113.5]
[1753073520337,0.06,186.49,186.48,87.5]
[1753073520959,0.06,186.49,186.48,88.19]
[1753073521458,0.06,186.49,186.48,87.5]
[1753073522732,0.06,186.49,186.48,134.23775563]
[1753073522938,0.06,186.53,186.51,26.0]
[1753073523169,0.06,186.53,186.51,154.52307166]
[1753073523344,0.06,186.53,186.52,0.69]
[1753073523738,0.06,186.53,186.51,87.5]
[1753073524173,4.01307166,186.53,186.51,87.5]
[1753073524655,0.69,186.52,186.51,87.5]
[1753073525241,9.31442701,186.52,186.51,87.5]
[1753073526563,6.05135535,186.52,186.51,87.5]
[1753073526777,9.31442701,186.52,186.47,37.74]
[1753073526959,9.31442701,186.52,186.46,26.69]
[1753073526960,3.26307166,186.5,186.46,64.41]
[1753073527261,3.26307166,186.5,186.46,26.69]
[1753073527638,3.26307166,186.5,186.47,0.69]
[1753073528060,8.62528947,186.49,186.45,38.41]
[1753073528367,9.31528947,186.49,186.45,0.69]
[1753073529669,8.62528947,186.49,186.46,0.69]
[1753073529968,10.20659925,186.5,186.47,0.69]
[1753073530353,10.89659925,186.5,186.45,17.47468397]
[1753073530548,10.89659925,186.5,186.46,0.69]
[1753073531456,10.89659925,186.5,186.46,88.19]
[1753073531641,3.95307166,186.49,186.46,87.5]
[1753073532137,3.26307166,186.49,186.46,87.5]
[1753073532347,0.69,186.48,186.46,87.5]
[1753073533453,6.05262049,186.48,186.46,87.5]
[1753073534146,5.36262049,186.48,186.46,88.18]
[1753073534352,8.62537604,186.49,186.46,88.18]
[1753073536362,3.26307166,186.47,186.46,87.5]
[1753073537063,3.95307166,186.47,186.46,87.5]
[1753073538250,9.3158646,186.47,186.46,87.5]
[1753073539167,6.05279294,186.47,186.46,87.5]
[1753073539467,9.3158646,186.47,186.46,87.5]
[1753073540163,8.6258646,186.47,186.46,87.5]
[1753073541365,9.3158646,186.47,186.46,87.5]
[1753073542275,9.3158646,186.47,186.44,0.03]
[1753073542276,6.05279294,186.47,186.44,0.03]
[1753073542470,3.26307166,186.45,186.44,0.03]
[1753073542964,3.95307166,186.45,186.44,0.03]
[1753073544170,5.53067166,186.45,186.44,1e-08]
[1753073544379,10.89403985,186.45,186.44,1e-08]
[1753073545151,26.0,186.43,186.42,1e-08]
[1753073545357,66.96307166,186.43,186.4,1e-08]
[1753073545573,3.26307166,186.41,186.4,1e-08]
[1753073545960,3.95307166,186.41,186.4,1e-08]
[1753073546469,9.31759073,186.41,186.4,1e-08]
[1753073546675,1.5681,186.39,186.38,1e-08]
[1753073546853,8.09424332,186.39,186.36,0.03]
[1753073547167,67.65307166,186.38,186.36,0.03]
[1753073547774,71.87332672,186.38,186.36,0.03]
[1753073547957,0.69,186.38,186.36,0.03]
[1753073548155,3.26307166,186.38,186.36,0.71]
[1753073548389,26.0,186.37,186.36,0.03]
[1753073548571,26.0,186.37,186.35,0.03]
[1753073548572,5.36595836,186.36,186.35,0.03]
[1753073548892,47.01903002,186.36,186.35,0.03]
[1753073550473,47.01903002,186.36,186.35,1e-08]
[1753073551470,8.62903002,186.36,186.35,1e-08]
[1753073553268,3.26307166,186.36,186.35,1e-08]
[1753073553465,3.26307166,186.39,186.35,0.68000001]
[1753073553664,3.26307166,186.39,186.35,1e-08]
[1753073553665,3.26307166,186.37,186.35,1e-08]
[1753073554265,3.26307166,186.36,186.35,1e-08]
[1753073554678,3.95307166,186.36,186.35,1e-08]
[1753073555284,9.31903002,186.36,186.35,1e-08]
[1753073556773,8.62903002,186.36,186.35,1e-08]
[1753073556969,3.26307166,186.36,186.35,0.68000001]
[1753073557171,8.62903002,186.36,186.35,0.68000001]
[1753073558083,8.62903002,186.36,186.35,1e-08]
[1753073558270,8.68903002,186.36,186.35,1e-08]
[1753073560386,5.42595836,186.36,186.35,1e-08]
[1753073560565,8.68903002,186.36,186.35,1e-08]
[1753073563274,9.37903002,186.36,186.35,1e-08]
[1753073563476,8.68903002,186.36,186.35,1e-08]
[1753073563670,5.42595836,186.36,186.35,1e-08]
[1753073563983,8.68903002,186.36,186.35,1e-08]
[1753073565601,9.39903002,186.36,186.35,1e-08]
[1753073566066,47.11903002,186.36,186.35,1e-08]
[1753073574172,48.78333002,186.36,186.35,1e-08]
[1753073574995,45.52025836,186.36,186.35,1e-08]
[1753073575292,48.78333002,186.36,186.35,1e-08]
[1753073577030,0.06,186.36,186.35,0.69000001]
[1753073577873,0.06,186.36,186.35,3.95307167]
[1753073578073,0.06,186.36,186.35,108.23775564]
[1753073578497,0.06,186.36,186.35,113.60400195]
[1753073578699,0.06,186.36,186.35,151.32400195]
[1753073579804,0.06,186.36,186.35,299.32400195]
[1753073579805,1e-08,186.36,186.35,299.32400195]
[1753073580488,1e-08,186.36,186.35,261.60400195]
[1753073580797,1e-08,186.36,186.35,299.30400195]
[1753073582604,1e-08,186.36,186.35,261.60400195]
[1753073582908,1e-08,186.36,186.35,278.97468398]
[1753073584511,1e-08,186.36,186.35,282.23775564]
[1753073584688,1e-08,186.36,186.35,134.23775564]
[1753073585013,1e-08,186.36,186.35,139.60400195]
[1753073585384,0.06,186.4,186.39,42.78468397]
[1753073585602,0.06,186.44,186.39,84.28426509]
[1753073585803,0.06,186.44,186.39,171.78426509]
[1753073586000,0.06,186.44,186.41,16.78468397]
[1753073586209,0.06,186.44,186.41,55.02113587]
[1753073586502,0.06,186.44,186.43,3.26307166]
[1753073587081,0.06,186.44,186.43,29.95307166]
[1753073588516,0.06,186.44,186.43,26.69]
[1753073588689,0.06,186.44,186.43,29.95307166]
[1753073589341,0.06,186.44,186.43,52.1016992]
[1753073590009,0.06,186.44,186.43,29.95307166]
[1753073590708,0.06,186.44,186.43,117.45307166]
[1753073592092,0.06,186.44,186.43,114.19]
[1753073592395,0.06,186.44,186.43,117.45307166]
[1753073593398,0.06,186.44,186.43,116.76307166]